bitfinex/quotes_ETHUSD_20251128
["timestamp","ask_amount","ask_price","bid_price","bid_amount"]
[1764338457755,0.003,3079.1,3079.0,0.4891]
[1764338458184,0.003,3079.1,3079.0,0.9816]
[1764338458567,0.003,3079.1,3079.0,4.22940772]
[1764338458884,0.003,3079.6,3079.1,1.13109811]
[1764338459094,3.24587821,3080.9,3079.1,1.13109811]
[1764338459095,0.0677,3081.8,3080.2,0.6717]
[1764338459262,0.0677,3081.8,3080.6,0.4891]
[1764338459263,6.49299292,3081.7,3080.6,0.4891]
[1764338459457,6.49299292,3081.7,3080.2,0.1826]
[1764338459458,0.1,3081.6,3080.3,0.4925]
[1764338459688,6.91676684,3081.7,3080.4,0.405504]
[1764338459689,0.003,3081.7,3080.4,0.405504]
[1764338459995,0.003,3081.7,3080.5,0.4925]
[1764338459996,3.24802458,3081.7,3080.5,0.4925]
[1764338460156,7.79250112,3081.6,3080.3,0.209]
[1764338460356,7.79250112,3081.6,3080.2,0.6751]
[1764338460357,0.1,3081.3,3080.2,0.1826]
[1764338460584,0.309,3081.3,3080.2,0.1826]
[1764338460786,0.1,3081.0,3080.2,0.1826]
[1764338461087,9.7355184,3081.5,3080.2,0.6751]
[1764338461088,9.9445184,3081.5,3080.2,0.6751]
[1764338461290,9.8355184,3081.5,3080.3,0.4925]
[1764338461505,9.8355184,3081.5,3080.2,0.1826]
[1764338461506,0.0707,3081.4,3080.2,0.1826]
[1764338461689,0.1,3081.0,3080.2,0.1826]
[1764338461857,0.09937401,3081.0,3080.2,0.1826]
[1764338462193,0.0707,3081.4,3080.2,0.6751]
[1764338462362,0.0707,3081.3,3080.2,0.1826]
[1764338462564,7.16628102,3081.1,3079.5,0.1826]
[1764338462889,0.09937401,3080.5,3079.6,0.4925]
[1764338463189,0.09937401,3080.5,3078.9,0.1826]
[1764338463190,0.72559411,3080.5,3078.9,0.1826]
[1764338463384,0.72559411,3080.5,3079.0,0.4925]
[1764338463385,0.09937401,3080.2,3079.0,0.4925]
[1764338463590,0.72559411,3080.5,3079.0,0.4925]
[1764338463591,0.209,3080.5,3079.0,0.4925]
[1764338463802,0.209,3080.7,3079.1,0.71709193]
[1764338464013,0.09937401,3080.9,3079.1,0.71709193]
[1764338464307,0.09937401,3080.9,3079.0,0.4925]
[1764338464308,0.72559411,3080.0,3079.0,0.4925]
[1764338464455,0.72559411,3080.0,3078.9,0.1826]
[1764338464456,0.09937401,3079.9,3078.9,0.1826]
[1764338464660,0.09937401,3079.9,3078.6,0.4925]
[1764338464883,0.09937401,3079.5,3078.5,0.209]
[1764338465082,0.0707,3079.8,3078.5,0.7015]
[1764338465315,0.09937401,3079.7,3078.5,0.7015]
[1764338465589,0.72559411,3080.0,3078.6,0.4925]
[1764338465969,0.82496812,3080.0,3078.6,0.4925]
[1764338466287,0.72559411,3079.8,3078.6,0.4925]
[1764338466689,0.09937401,3079.7,3078.6,0.4925]
[1764338466986,0.209,3079.6,3078.1,0.4925]
[1764338467186,0.09937401,3079.4,3078.1,0.4925]
[1764338467391,0.09937401,3079.1,3077.9,0.3916]
[1764338467610,0.72559411,3079.2,3077.9,0.3916]
[1764338467611,0.209,3079.0,3077.9,0.1826]
[1764338467756,0.209,3079.0,3077.4,0.4925]
[1764338468109,0.30920209,3079.8,3077.7,3.77417137]
[1764338468110,0.0707,3079.4,3077.7,3.77417137]
[1764338468316,0.405504,3079.1,3077.7,0.4925]
[1764338468457,0.09937401,3078.8,3077.4,0.209]
[1764338468665,7.27590701,3079.4,3077.4,0.209]
[1764338468666,0.09937401,3079.9,3079.2,0.1826]
[1764338468959,0.09937401,3080.0,3079.2,0.1826]
[1764338469185,0.82496812,3080.0,3079.2,0.1826]
[1764338469386,0.09937401,3080.0,3079.2,0.1826]
[1764338469584,6.70229566,3080.1,3079.2,0.1826]
[1764338470070,0.72559411,3080.0,3079.2,0.1826]
[1764338470277,6.49371732,3079.9,3079.2,0.1826]
[1764338470481,6.49371732,3079.9,3078.5,0.93459411]
[1764338470482,9.91064999,3079.9,3078.5,0.93459411]
[1764338470793,9.91064999,3079.9,3078.5,1.42889411]
[1764338470794,0.09937401,3079.7,3078.5,1.42889411]
[1764338470981,0.09937401,3079.7,3078.2,3.24864403]
[1764338470982,0.79629411,3079.8,3078.2,0.4943]
[1764338471292,0.09937401,3079.6,3078.3,0.4943]
[1764338471494,0.09937401,3079.4,3078.3,0.4943]
[1764338471675,0.0707,3079.3,3078.0,0.1826]
[1764338471874,0.79629411,3079.3,3078.0,0.1826]
[1764338472192,0.09937401,3078.7,3077.6,0.1826]
[1764338472382,6.49645942,3078.6,3077.7,0.4943]
[1764338472586,3.24822971,3078.6,3077.6,0.21509285]
[1764338472817,6.49645942,3078.6,3077.7,0.4943]
[1764338472982,9.74468913,3078.6,3077.6,0.1826]
[1764338473184,0.72559411,3079.1,3078.5,0.1833]
[1764338473667,0.72559411,3079.1,3078.5,0.6776]
[1764338473864,0.0707,3080.5,3079.0,0.4909]
[1764338474064,0.29831865,3080.7,3079.1,0.21577702]
[1764338474270,6.49287406,3080.3,3079.2,0.491]
[1764338474582,0.29831865,3080.8,3079.2,0.491]
[1764338474583,0.002,3081.2,3079.2,7.37834521]
[1764338474779,3.2455941,3081.1,3079.3,1.21659411]
[1764338474990,0.209,3081.0,3079.3,1.21659411]
[1764338475175,0.93459411,3081.0,3079.4,0.491]
[1764338475373,0.93459411,3081.0,3079.5,0.405504]
[1764338475374,0.209,3081.0,3079.5,0.405504]
[1764338475593,0.209,3081.0,3079.4,0.491]
[1764338475898,0.209,3081.0,3079.5,0.405504]
[1764338476101,3.2455941,3081.1,3079.5,0.405504]
[1764338476265,0.2991873,3081.0,3079.6,0.491]
[1764338476465,0.002,3081.2,3079.8,0.72559411]
[1764338476698,3.24750632,3081.2,3079.9,1.25568026]
[1764338476899,6.49301264,3081.2,3079.9,1.74668026]
[1764338477207,0.29912762,3081.1,3080.0,0.491]
[1764338477774,0.002,3081.2,3080.1,0.614504]
[1764338478186,0.002,3081.2,3080.2,0.491]
[1764338478394,0.30112762,3081.2,3080.3,3.24643703]
[1764338478717,0.30112762,3081.2,3080.3,3.64108073]
[1764338478718,0.002,3081.2,3080.3,3.64108073]
[1764338479014,0.30112762,3081.2,3081.1,0.1969]
[1764338479222,0.002,3081.2,3081.1,0.6879]
[1764338479875,0.002,3081.6,3081.1,0.6879]
[1764338480073,0.002,3081.6,3081.2,0.491]
[1764338480573,0.002,3081.6,3080.8,0.491]
[1764338480790,0.29912762,3081.5,3080.4,0.491]
[1764338480998,0.002,3081.6,3080.4,0.491]
[1764338480999,0.29912762,3081.4,3080.4,0.491]
[1764338481201,0.29912762,3081.3,3080.4,0.491]
[1764338481388,0.002,3081.6,3080.5,0.405504]
[1764338481591,0.30051367,3081.5,3080.6,0.209]
[1764338481904,0.002,3081.6,3081.5,0.1969]
[1764338482104,0.30249994,3081.6,3081.5,0.1969]
[1764338482305,0.30249994,3081.6,3080.9,0.1969]
[1764338482601,6.79084554,3081.5,3080.9,0.1969]
[1764338482835,6.79084554,3081.5,3080.3,3.24639521]
[1764338482836,0.30049994,3081.4,3080.6,0.1969]
[1764338483029,0.30049994,3081.4,3079.7,3.24702829]
[1764338483030,0.72559411,3081.0,3079.1,0.6743]
[1764338483179,0.09937401,3080.6,3079.2,0.491]
[1764338483522,0.09937401,3080.6,3079.1,0.1833]
[1764338483523,0.50949994,3080.5,3079.1,0.1833]
[1764338483725,7.06690701,3080.1,3078.8,0.491]
[1764338483877,7.06690701,3080.1,3078.5,0.1843]
[1764338483878,1.02609405,3080.0,3078.5,0.1843]
[1764338484099,0.09937401,3079.7,3078.5,0.1843]
[1764338484375,0.09937401,3079.7,3078.5,0.001]
[1764338484376,3.32092971,3078.6,3078.5,0.001]
[1764338484574,3.54872965,3078.6,3078.5,0.001]
[1764338485706,3.64810366,3078.6,3078.5,0.001]
[1764338486070,3.54792965,3078.6,3078.5,0.001]
[1764338486569,0.30049994,3078.6,3078.5,0.001]
[1764338486775,3.54872965,3078.6,3078.5,0.001]
[1764338487203,0.30049994,3078.6,3078.5,0.001]
[1764338487701,3.54872965,3078.6,3078.5,0.001]
[1764338488197,3.62142965,3078.6,3078.5,0.001]
[1764338488395,0.405504,3078.5,3078.1,0.001]
[1764338488597,0.405504,3078.5,3077.8,0.001]
[1764338488598,0.30049994,3078.4,3077.8,0.001]
[1764338488797,0.50949994,3078.3,3077.8,0.001]
[1764338489113,0.09937401,3078.0,3077.8,0.001]
[1764338489286,0.50949994,3077.9,3077.8,0.001]
[1764338489894,0.67957395,3077.9,3077.8,0.001]
[1764338490211,8.87757907,3077.9,3077.8,0.001]
[1764338490410,3.34939952,3076.9,3076.0,0.6879]
[1764338490624,0.30049994,3076.8,3076.0,1.08179644]
[1764338490817,0.30049994,3076.7,3075.6,4.14821388]
[1764338491116,6.50005102,3076.9,3075.0,0.001]
[1764338491117,0.30049994,3076.6,3075.0,0.001]
[1764338491303,0.72559411,3076.3,3075.0,0.001]
[1764338491507,0.30049994,3076.2,3075.0,0.001]
[1764338491705,0.72559411,3076.3,3075.0,0.001]
[1764338491706,0.09937401,3075.7,3075.0,0.001]
[1764338492019,0.37019994,3076.1,3075.0,0.001]
[1764338492020,0.09937401,3075.4,3075.0,0.001]
[1764338492196,0.50949994,3075.6,3075.0,0.001]
[1764338492197,0.0697,3075.1,3075.0,0.001]
[1764338492399,3.9008267,3075.1,3075.0,0.001]
[1764338492626,4.72579482,3075.1,3075.0,0.001]
[1764338492805,1.30479405,3075.1,3075.0,0.001]
[1764338493007,1.09579405,3075.1,3075.0,0.001]
[1764338493207,0.30049994,3075.1,3075.0,0.001]
[1764338493417,0.209,3075.2,3075.0,0.001]
[1764338493984,0.30049994,3075.3,3075.0,0.001]
[1764338494198,0.209,3075.3,3075.0,0.001]
[1764338494519,0.29941897,3075.7,3075.1,0.491]
[1764338494709,0.29941897,3076.0,3075.1,3.74290473]
[1764338494917,0.209,3076.0,3075.2,0.86539047]
[1764338495302,0.209,3076.0,3075.2,1.06229047]
[1764338495705,0.0697,3076.8,3075.3,0.52351715]
[1764338495906,0.0697,3076.8,3075.3,0.92241952]
[1764338495907,3.45923564,3076.7,3075.3,0.92241952]
[1764338496110,0.09937401,3076.2,3075.3,0.92241952]
[1764338496425,0.09937401,3076.2,3075.3,4.17403103]
[1764338496643,0.09937401,3076.2,3075.0,0.001]
[1764338496644,7.06690701,3075.7,3075.0,0.001]
[1764338496820,0.09937401,3075.4,3075.0,0.001]
[1764338497019,3.25047759,3076.5,3075.1,0.1969]
[1764338497198,0.09937401,3075.9,3075.1,0.1969]
[1764338497529,0.209,3076.0,3075.2,0.491]
[1764338497893,7.06690701,3076.7,3075.3,0.03251715]
[1764338497894,0.09937401,3076.4,3075.3,0.03251715]
[1764338498096,0.209,3076.3,3075.2,0.491]
[1764338498295,0.209,3076.2,3075.2,0.491]
[1764338498547,0.209,3076.2,3075.1,0.1969]
[1764338498548,3.4597862,3076.2,3075.1,0.1969]
[1764338498841,0.09937401,3075.8,3075.1,0.1969]
[1764338499043,0.209,3075.8,3075.2,0.52351821]
[1764338499198,0.09937401,3075.7,3075.0,0.001]
[1764338499396,0.209,3075.8,3075.0,0.001]
[1764338499397,0.09937401,3075.4,3075.0,0.001]
[1764338499627,0.2983533,3076.0,3075.1,0.1969]
[1764338499841,0.09937401,3075.8,3075.1,0.1969]
[1764338500022,0.09937401,3075.5,3075.0,0.001]
[1764338500337,0.09937401,3075.1,3075.0,0.001]
[1764338500554,0.209,3075.1,3075.0,0.001]
[1764338501544,4.35559488,3075.1,3075.0,0.001]
[1764338502036,0.50487801,3074.4,3073.6,0.001]
[1764338502256,7.47646407,3074.4,3073.6,0.001]
[1764338502399,0.72559411,3074.4,3073.6,0.001]
[1764338502718,4.3543353,3074.4,3073.6,0.001]
[1764338502968,4.2866353,3074.4,3073.6,0.001]
[1764338503170,3.25130205,3075.7,3074.1,0.1907]
[1764338503171,0.21,3075.2,3074.1,0.1907]
[1764338503461,0.30937401,3075.1,3074.1,0.1907]
[1764338503639,6.44249595,3074.8,3073.6,0.4824]
[1764338503955,0.09937401,3074.4,3073.7,0.03253407]
[1764338504153,0.09937401,3074.4,3073.6,0.4824]
[1764338504333,0.09937401,3074.9,3074.1,0.1907]
[1764338504534,0.21,3074.8,3074.1,0.1907]
[1764338504734,0.09937401,3074.6,3074.1,0.1907]
[1764338505435,3.25171646,3075.3,3074.1,0.1907]
[1764338505436,0.21,3074.8,3074.1,0.1907]
[1764338505648,0.09937401,3074.6,3074.1,0.1907]
[1764338506474,0.21,3074.8,3074.1,0.1907]
[1764338506699,0.30937401,3074.8,3074.1,0.1907]
[1764338508150,0.09937401,3074.8,3074.1,0.1907]
[1764338508467,0.21,3074.7,3074.1,0.1907]
[1764338508789,0.09937401,3074.6,3074.1,0.1907]
[1764338508945,6.50472108,3074.7,3074.1,0.1907]
[1764338509150,0.79329411,3074.6,3074.0,0.001]
[1764338509400,0.09937401,3074.4,3074.0,0.001]
[1764338509977,0.30937401,3074.4,3074.0,0.001]
[1764338510183,0.37707401,3074.4,3074.0,0.001]
[1764338510374,0.37727401,3074.4,3074.0,0.001]
[1764338510593,0.29849926,3074.5,3074.3,0.4824]
[1764338510806,0.21,3075.3,3074.4,0.03252667]
[1764338510966,0.21,3075.3,3074.3,0.4824]
[1764338510967,0.30957401,3075.3,3074.3,0.4824]
[1764338511177,0.21,3075.3,3074.3,0.4824]
[1764338511385,0.39805666,3075.5,3074.4,0.405504]
[1764338511588,0.09957401,3075.5,3074.4,0.405504]
[1764338511786,0.09957401,3075.5,3074.5,0.4814]
[1764338512004,0.09957401,3075.4,3074.5,0.4814]
[1764338512504,0.29894734,3075.7,3075.3,0.1907]
[1764338512716,0.0677,3077.1,3075.4,6.50321908]
[1764338512717,0.09957401,3076.2,3075.4,6.50321908]
[1764338513022,0.09957401,3076.2,3075.4,0.4814]
[1764338513220,16.26264289,3076.8,3075.3,0.1907]
[1764338513221,0.09957401,3075.8,3075.3,0.1907]
[1764338513510,0.29974659,3076.5,3075.3,0.1907]
[1764338513511,0.29974659,3076.0,3075.4,0.4814]
[1764338513687,0.09957401,3076.5,3075.5,0.71755195]
[1764338514007,0.29974659,3076.4,3075.5,0.71755195]
[1764338514225,0.29974659,3076.3,3075.6,0.4814]
[1764338514427,0.72559411,3076.7,3075.6,0.4814]
[1764338514428,0.3993206,3076.2,3075.6,0.4814]
[1764338514571,0.29974659,3076.1,3075.6,0.4814]
[1764338514771,1.0253407,3076.0,3075.3,0.1907]
[1764338514977,1.0253407,3076.0,3075.3,1.06449068]
[1764338514978,0.29974659,3075.9,3075.3,1.06449068]
[1764338515189,0.29974659,3075.8,3075.3,0.6721]
[1764338515482,0.30109551,3075.7,3075.4,0.4814]
[1764338515683,0.30109513,3075.6,3075.4,0.4814]
[1764338515876,0.09957401,3075.9,3075.3,0.1907]
[1764338516078,0.30109519,3075.8,3075.3,0.1907]
[1764338516309,0.30109519,3075.7,3075.3,0.1907]
[1764338516507,0.30109519,3075.6,3075.3,0.1907]
[1764338516714,0.30109519,3075.5,3075.3,0.1907]
[1764338516917,0.30109519,3075.4,3075.3,3.92380968]
[1764338517082,0.30109519,3075.4,3075.3,4.64137982]
[1764338517278,3.46066081,3076.3,3075.3,7.89309509]
[1764338517485,3.46066081,3076.3,3075.4,0.4814]
[1764338517486,0.30189442,3076.2,3075.4,0.4814]
[1764338517678,0.30189442,3076.1,3075.4,0.4814]
[1764338517890,0.30189442,3076.0,3075.5,1.51998504]
[1764338518119,0.30189442,3075.9,3075.5,1.51998504]
[1764338518311,0.30189442,3075.8,3075.6,0.4814]
[1764338518509,0.30189442,3075.7,3075.6,0.4814]
[1764338518711,0.30189442,3075.7,3075.6,0.6815385]
[1764338518932,0.93559411,3077.0,3075.6,10.4455943]
[1764338518933,0.72559411,3077.0,3075.6,10.4455943]
[1764338519134,0.09957401,3077.1,3075.7,0.886904]
[1764338519344,0.09957401,3077.4,3075.7,1.61249811]
[1764338519543,0.09957401,3077.4,3075.9,0.405504]
[1764338520041,0.09957401,3077.4,3076.0,0.4814]
[1764338520254,0.09957401,3077.4,3076.1,0.405504]
[1764338520546,0.09957401,3077.4,3076.0,0.4814]
[1764338520547,0.3696,3077.3,3076.0,0.4814]
[1764338520731,0.09957401,3076.5,3075.8,0.21]
[1764338521040,6.49941504,3077.2,3075.8,0.21]
[1764338521041,0.09957401,3077.2,3075.8,0.21]
[1764338521250,0.09957401,3077.0,3075.9,0.4814]
[1764338521421,3.24918689,3077.7,3075.9,0.4814]
[1764338521422,0.002,3077.8,3077.2,0.1907]
[1764338521790,0.002,3078.2,3077.4,0.405504]
[1764338521917,0.00139782,3078.5,3077.4,0.405504]
[1764338522254,0.00139782,3078.5,3077.5,0.8821]
[1764338522753,0.00139782,3078.5,3077.6,0.4814]
[1764338523058,0.00139782,3078.5,3077.2,0.1907]
[1764338523059,6.44249595,3078.2,3077.2,0.1907]
[1764338523349,6.44249595,3078.2,3077.0,0.4814]
[1764338523350,0.09957401,3077.9,3077.1,0.1907]
[1764338523559,6.44249595,3077.8,3076.5,0.4814]
[1764338523744,6.44249595,3077.8,3076.0,0.6721]
[1764338523745,0.72559411,3077.7,3076.0,0.6721]
[1764338523944,1.09719411,3077.7,3076.0,0.6721]
[1764338524156,1.09719411,3077.7,3076.1,0.4814]
[1764338524362,0.09957401,3077.5,3076.2,0.405504]
[1764338524556,0.0697,3078.0,3076.2,0.405504]
[1764338524557,0.16927401,3078.0,3076.2,0.405504]
[1764338524756,6.4979369,3077.9,3076.4,1.13109811]
[1764338525067,3.24896845,3077.9,3076.6,0.405504]
[1764338525251,6.4979369,3077.9,3076.7,0.21]
[1764338525424,0.09957401,3077.7,3076.7,0.6914]
[1764338525644,0.09957401,3077.3,3076.2,0.4814]
[1764338525894,0.21,3077.5,3076.2,0.4814]
[1764338526052,0.09957401,3077.0,3076.2,0.4814]
[1764338527083,3.40092437,3076.9,3076.0,0.6721]
[1764338527280,6.75052275,3076.9,3076.0,0.6721]
[1764338527459,3.83107509,3077.5,3076.1,0.51390869]
[1764338527460,0.21,3077.5,3076.1,0.51390869]
[1764338527648,0.72559411,3077.4,3076.2,0.3955584]
[1764338527974,0.72559411,3077.4,3076.3,0.4814]
[1764338528181,0.09957401,3077.3,3076.3,0.4814]
[1764338528480,0.72559411,3077.4,3076.3,0.4814]
[1764338528655,0.09957401,3077.0,3076.3,0.4814]
[1764338528851,3.25002437,3076.9,3076.0,0.1907]
[1764338529051,3.25002437,3076.9,3076.1,0.03250869]
[1764338529457,6.50004874,3076.9,3076.0,0.6721]
[1764338529753,0.1509,3076.9,3076.0,3.95557453]
[1764338529951,0.21,3077.5,3076.1,0.4814]
[1764338530186,0.72559411,3077.3,3076.2,0.03250763]
[1764338530480,0.72559411,3077.3,3076.1,0.4814]
[1764338530681,0.72559411,3077.3,3076.1,0.6914]
[1764338530880,3.25013,3076.8,3076.1,0.4814]
[1764338531090,3.24959619,3077.4,3076.2,0.03250763]
[1764338531298,0.09957401,3077.2,3076.1,3.9422696]
[1764338531495,0.40072283,3077.2,3076.2,0.4511]
[1764338531695,0.40072283,3077.2,3076.2,0.6611]
[1764338531902,0.40072283,3077.2,3076.3,0.03250658]
[1764338532065,0.40072283,3077.2,3076.0,0.1907]
[1764338532066,0.40072283,3077.2,3076.1,0.03250869]
[1764338532258,0.30125952,3077.1,3076.1,0.03250869]
[1764338532452,0.09957401,3076.9,3076.0,0.1907]
[1764338532770,0.30125952,3076.8,3075.7,0.48361292]
[1764338532981,0.21,3076.9,3075.7,0.48361292]
[1764338532982,0.72559411,3076.6,3075.7,0.48361292]
[1764338533189,0.30125952,3076.5,3075.7,0.48361292]
[1764338533594,0.30125952,3076.5,3075.8,3.25118668]
[1764338533795,0.30125952,3076.5,3076.4,0.1905]
[1764338534002,0.72559411,3076.7,3076.4,0.1905]
[1764338534003,0.30125952,3076.6,3076.4,0.1905]
[1764338534204,0.30125952,3076.6,3076.4,0.6654]
[1764338534498,0.30125952,3076.8,3076.4,0.6654]
[1764338534700,0.0697,3078.0,3076.4,0.6654]
[1764338534701,0.30147208,3077.2,3076.4,0.1905]
[1764338534889,0.21,3077.8,3076.4,0.1905]
[1764338534890,3.24928515,3077.6,3076.6,3.25034128]
[1764338535089,0.30147208,3077.5,3077.1,0.1815]
[1764338535697,0.40104609,3077.4,3076.7,0.21]
[1764338535900,0.30147208,3077.5,3076.7,0.50740235]
[1764338536197,1.02706619,3077.6,3076.7,0.6849]
[1764338536409,0.30147208,3077.5,3076.7,0.6849]
[1764338536595,0.72559411,3077.7,3076.8,0.4749]
[1764338536912,0.72559411,3077.7,3076.8,3.72493151]
[1764338536913,0.30147208,3077.6,3076.8,3.72493151]
[1764338537079,3.55080846,3077.6,3076.8,4.48510704]
[1764338537296,0.30147208,3077.5,3076.9,0.4749]
[1764338538010,0.30147208,3077.5,3076.5,0.6849]
[1764338538304,0.30147208,3077.5,3076.6,0.24250341]
[1764338538488,0.30147208,3077.6,3076.7,0.4749]
[1764338538685,0.0689,3078.0,3076.7,0.4749]
[1764338538686,0.30147208,3077.5,3076.7,0.4749]
[1764338538909,3.24908213,3077.8,3076.8,6.50026]
[1764338539107,0.30147208,3077.7,3076.8,6.50026]
[1764338539295,0.30147208,3077.6,3076.9,0.4749]
[1764338539496,0.30147208,3077.5,3076.9,0.4749]
[1764338539696,0.40104609,3077.9,3076.9,0.4749]
[1764338539883,0.30147208,3077.8,3077.4,0.1815]
[1764338540283,0.30147208,3077.7,3077.5,0.4749]
[1764338540621,1.02706619,3078.2,3077.5,0.4749]
[1764338540816,0.30147208,3078.1,3077.5,0.4749]
[1764338541022,3.24896845,3077.9,3077.5,0.4749]
[1764338541319,0.30147208,3077.8,3077.4,0.1815]
[1764338541490,0.1767,3077.5,3076.6,0.001]
[1764338541690,0.4397,3077.8,3076.7,0.4749]
[1764338541691,0.30263729,3077.4,3076.7,0.4749]
[1764338541892,0.09957401,3077.5,3076.7,0.4749]
[1764338542103,0.09957401,3077.5,3076.6,6.71167206]
[1764338542104,0.30265946,3077.4,3076.6,3.25133078]
[1764338542287,0.30265946,3077.3,3076.6,0.001]
[1764338542496,0.25047401,3076.7,3076.6,0.001]
[1764338542825,0.30285869,3077.1,3076.6,3.72624128]
[1764338543001,0.40244477,3077.6,3076.8,3.25013]
[1764338543320,0.40244477,3077.6,3076.6,0.9351]
[1764338543321,0.30287076,3077.5,3076.6,0.001]
[1764338543520,0.51287076,3077.4,3076.6,0.001]
[1764338543821,0.30287076,3077.3,3076.6,0.001]
[1764338544021,0.30287076,3077.2,3076.6,0.001]
[1764338544222,0.30287076,3077.1,3076.6,0.001]
[1764338544398,0.21,3077.4,3076.6,0.001]
[1764338544399,0.30287076,3077.0,3076.6,0.001]
[1764338544603,0.21,3077.4,3076.6,0.001]
[1764338544604,0.29426135,3076.9,3076.6,0.001]
[1764338544802,0.42567401,3076.7,3076.6,0.001]
[1764338545123,3.94663564,3076.7,3076.6,0.001]
[1764338545423,4.04620965,3076.7,3076.6,0.001]
[1764338545591,3.57633564,3076.7,3076.6,0.001]
[1764338545797,3.67590965,3076.7,3076.6,0.001]
[1764338546124,0.09957401,3076.7,3076.6,0.001]
[1764338546299,0.3609,3076.8,3076.6,0.001]
[1764338546300,0.21,3076.8,3076.6,0.001]
[1764338546500,0.1509,3076.9,3076.6,0.001]
[1764338546712,3.40093801,3076.9,3076.6,0.001]
[1764338547028,3.77175679,3076.9,3076.6,0.001]
[1764338547226,0.27627401,3076.7,3076.6,0.001]
[1764338547429,0.1767,3076.7,3076.6,0.001]
[1764338547727,0.27627401,3076.7,3076.6,0.001]
[1764338547896,0.09957401,3076.7,3076.6,0.001]
[1764338548100,0.1509,3076.9,3076.6,0.001]
[1764338548408,6.75057499,3076.9,3076.6,0.001]
[1764338548604,0.09957401,3076.8,3076.6,0.001]
[1764338549015,3.79573564,3076.7,3076.6,0.001]
[1764338549216,3.89530965,3076.7,3076.6,0.001]
[1764338549534,3.34980965,3076.7,3076.6,0.001]
[1764338550307,3.79583564,3076.7,3076.6,0.001]
[1764338550509,0.28007401,3076.7,3076.6,0.001]
[1764338550737,0.09957401,3076.7,3076.6,0.001]
[1764338551032,0.1509,3076.9,3076.6,0.001]
[1764338551033,3.50052202,3076.9,3076.6,0.001]
[1764338551538,3.50050086,3076.9,3076.6,0.001]
[1764338552842,3.5005226,3076.9,3076.6,0.001]
[1764338553040,6.75057119,3076.9,3076.6,0.001]
[1764338553336,0.09957401,3076.7,3076.6,0.001]
[1764338553543,0.27627401,3076.7,3076.6,0.001]
[1764338553914,0.09957401,3076.7,3076.6,0.001]
[1764338554221,3.25004859,3076.9,3076.6,0.001]
[1764338554536,3.24983763,3077.1,3076.6,0.001]
[1764338554537,0.72559411,3077.0,3076.6,0.001]
[1764338554944,0.21,3077.3,3076.6,0.4759]
[1764338555141,3.24970752,3077.2,3076.6,0.4759]
[1764338555359,3.34928153,3077.2,3076.6,0.4759]
[1764338556342,3.55917777,3077.3,3076.6,3.72623488]
[1764338556542,0.72559411,3077.4,3077.2,0.1815]
[1764338556718,0.30378068,3077.3,3077.2,0.1815]
[1764338556919,0.30378068,3077.3,3076.7,0.4749]
[1764338557110,3.24981313,3077.1,3076.6,0.001]
[1764338557312,0.30378068,3077.0,3076.6,0.001]
[1764338557518,0.30378068,3076.9,3076.6,0.001]
[1764338557713,3.24975343,3077.2,3076.6,0.001]
[1764338557714,0.30378068,3076.8,3076.6,0.001]
[1764338557942,0.45458068,3076.7,3076.6,0.001]
[1764338558421,0.63138068,3076.7,3076.6,0.001]
[1764338558624,0.30378068,3076.7,3076.6,0.001]
[1764338558945,0.30298068,3076.7,3076.6,0.001]
[1764338560043,3.55321632,3076.7,3076.6,0.001]
[1764338560346,4.92388444,3076.7,3076.6,0.001]
[1764338562014,5.32938844,3076.7,3076.6,0.001]
[1764338562216,15.75719932,3076.7,3076.6,0.001]
[1764338562717,22.81566281,3076.7,3076.6,0.001]
[1764338562915,17.07714381,3076.7,3076.6,0.001]
[1764338563138,29.35139981,3076.7,3076.6,0.001]
[1764338563337,0.09957401,3076.4,3076.3,0.001]
[1764338563568,6.00915041,3076.4,3076.3,0.001]
[1764338563766,6.37985041,3076.4,3076.3,0.001]
[1764338564155,2.08447212,3076.4,3076.3,0.001]
[1764338564360,1.35887801,3076.4,3076.3,0.001]
[1764338565261,5.33502471,3076.4,3076.3,0.001]
[1764338567039,4.7647507,3076.4,3076.3,0.001]
[1764338567243,5.23502471,3076.4,3076.3,0.001]
[1764338567467,5.33502471,3076.4,3076.3,0.001]
[1764338567664,5.23502471,3076.4,3076.3,0.001]
[1764338567839,5.33502471,3076.4,3076.3,0.001]
[1764338568039,13.548636,3076.4,3076.3,0.001]
[1764338568478,3.421,3076.2,3074.8,0.1907]
[1764338568677,0.27107401,3076.1,3075.1,0.1975]
[1764338568969,0.64177401,3076.1,3075.1,0.1975]
[1764338569170,1.36736812,3076.1,3075.1,0.1975]
[1764338569466,5.02374172,3076.1,3075.1,0.1975]
[1764338569773,5.02374172,3076.1,3074.8,0.1907]
[1764338569774,12.08220521,3076.1,3074.8,0.1907]
[1764338569972,12.08220521,3076.1,3075.1,0.1975]
[1764338570468,12.08220521,3076.1,3075.3,0.4867]
[1764338570469,11.71150521,3076.1,3075.3,0.4867]
[1764338570855,4.9561573,3076.1,3075.3,0.4867]
[1764338572361,4.7846573,3076.1,3075.3,0.4867]
[1764338573061,3.55398518,3076.1,3075.3,0.4867]
[1764338573373,4.3791533,3076.1,3075.3,0.4867]
[1764338573983,4.82507929,3076.1,3075.1,0.1975]
[1764338574147,7.9769533,3076.1,3075.2,0.4867]
[1764338574344,4.3791533,3076.1,3075.4,0.4867]
[1764338576166,4.3791533,3076.1,3075.6,0.4867]
[1764338576361,4.3791533,3076.1,3076.0,0.4879]
[1764338576362,1.1282837,3076.1,3076.0,0.4879]
[1764338576566,1.02870969,3076.1,3076.0,0.9746]
[1764338576764,4.27957929,3076.1,3076.0,0.4879]
[1764338576977,4.3791533,3076.1,3076.0,0.001]
[1764338578179,4.27957929,3076.1,3076.0,0.9746]
[1764338579892,4.3791533,3076.1,3076.0,0.9746]
[1764338580098,4.3791533,3076.1,3076.0,0.001]
[1764338580697,4.5566533,3076.1,3076.0,0.001]